bitfinex-derivatives/quotes_SOLF0:USTF0_20250924
["timestamp","ask_amount","ask_price","bid_price","bid_amount"]
[1758720523158,4.236,212.4,212.33,7.56]
[1758720523657,93.74610364,212.43,212.36,7.56]
[1758720524760,4.2357,212.41,212.36,7.56]
[1758720524963,7.43,212.42,212.35,9.74685948]
[1758720525161,7.43,212.4,212.33,2.18685948]
[1758720525353,7.43,212.4,212.31,9.74685948]
[1758720525861,11.6659,212.4,212.35,2.18685948]
[1758720526061,11.6659,212.4,212.36,7.56]
[1758720526961,7.43,212.4,212.35,2.18685948]
[1758720527157,4.2355,212.42,212.36,7.56]
[1758720529064,11.6655,212.42,212.36,7.56]
[1758720529253,7.43,212.42,212.36,7.56]
[1758720530264,11.6659,212.4,212.35,2.18685948]
[1758720530465,4.2359,212.4,212.35,2.18685948]
[1758720530761,4.2359,212.4,212.36,7.56]
[1758720531164,7.43,212.39,212.36,7.56]
[1758720531859,4.2359,212.4,212.35,2.18685948]
[1758720532165,11.6659,212.4,212.35,2.18685948]
[1758720532367,11.6659,212.4,212.36,7.56]
[1758720532861,11.6659,212.4,212.35,2.18685948]
[1758720533067,11.6659,212.4,212.36,7.56]
[1758720533667,11.6659,212.4,212.35,2.18685948]
[1758720533868,11.6659,212.4,212.36,7.48]
[1758720535167,7.43,212.4,212.36,7.48]
[1758720536661,7.43,212.4,212.35,2.18685948]
[1758720536868,7.43,212.4,212.36,7.48]
[1758720537666,4.2357,212.41,212.36,7.48]
[1758720538062,7.54,212.4,212.36,7.48]
[1758720539463,7.28,212.39,212.31,7.59]
[1758720539665,7.28,212.37,212.31,7.59]
[1758720542365,11.5166,212.37,212.31,7.59]
[1758720547178,7.28,212.32,212.24,95.75685948]
[1758720547364,9.46685948,212.32,212.24,95.75685948]
[1758720548376,9.46685948,212.32,212.25,4.2387]
[1758720548571,2.18685948,212.32,212.24,93.57]
[1758720548774,9.46685948,212.3,212.24,93.57]
[1758720549174,7.28,212.29,212.24,85.98]
[1758720549377,65.9043,212.36,212.24,85.98]
[1758720549378,2.18685948,212.28,212.24,85.98]
[1758720549672,7.28,212.27,212.2,7.59]
[1758720549977,7.28,212.27,212.2,122.67]
[1758720550277,2.18685948,212.26,212.2,122.67]
[1758720550474,2.18685948,212.26,212.2,115.08]
[1758720550776,65.9171,212.32,212.2,115.08]
[1758720550777,7.28,212.21,212.2,115.08]
[1758720550973,7.28,212.21,212.16,7.59]
[1758720551172,2.18685948,212.22,212.14,115.08]
[1758720551381,2.18685948,212.2,212.13,119.3412]
[1758720551680,2.18685948,212.18,212.13,115.1]
[1758720551873,7.28,212.17,212.13,115.1]
[1758720552074,2.18685948,212.18,212.13,115.1]
[1758720552474,7.28,212.17,212.13,115.1]
[1758720552779,2.18685948,212.18,212.13,115.1]
[1758720552980,7.28,212.17,212.13,115.1]
[1758720553377,2.18685948,212.18,212.13,115.1]
[1758720553580,7.28,212.15,212.13,115.1]
[1758720553880,2.18685948,212.16,212.13,115.1]
[1758720554472,7.28,212.15,212.13,115.1]
[1758720554970,4.24,212.2,212.14,7.59]
[1758720554971,2.18685948,212.17,212.14,7.59]
[1758720555983,9.46685948,212.17,212.14,7.59]
[1758720556481,7.28,212.25,212.14,7.59]
[1758720556677,2.18685948,212.2,212.14,7.59]
[1758720557081,9.46685948,212.2,212.14,7.59]
[1758720559982,2.18685948,212.22,212.14,7.59]
[1758720560585,7.28,212.21,212.14,7.59]
[1758720561984,2.18685948,212.2,212.14,7.59]
[1758720562180,79.71848584,212.26,212.1,7.59]
[1758720562181,2.18685948,212.16,212.1,7.59]
[1758720563384,2.18685948,212.14,212.09,0.82055636]
[1758720563584,7.28,212.13,212.09,0.82055636]
[1758720563887,7.28,212.13,212.09,8.22055636]
[1758720564280,7.59,212.13,212.09,0.82055636]
[1758720564478,2.18685948,212.12,212.09,0.82055636]
[1758720564679,7.59,212.11,212.09,0.82055636]
[1758720565085,2.18685948,212.12,212.09,0.82055636]
[1758720565389,7.59,212.1,212.09,0.82055636]
[1758720565689,4.2417,212.11,212.05,7.4]
[1758720565890,11.8317,212.11,212.05,7.4]
[1758720566084,4.242,212.1,212.05,7.4]
[1758720566294,7.59,212.09,212.02,59.5]
[1758720567193,2.18685948,212.1,212.03,7.4]
[1758720567392,4.2418,212.11,212.03,7.4]
[1758720569891,14.01815948,212.13,212.03,7.4]
[1758720570091,9.77685948,212.13,212.03,7.4]
[1758720570693,7.59,212.13,212.03,7.4]
[1758720571089,7.59,212.13,212.04,4.2429]
[1758720571293,7.59,212.18,212.05,7.4]
[1758720571493,7.59,212.18,212.06,7.4]
[1758720572396,7.59,212.18,212.05,3.42460514]
[1758720572397,4.2405,212.17,212.08,7.4]
[1758720572694,7.59,212.18,212.08,7.4]
[1758720572895,91.84197462,212.19,212.1,7.4]
[1758720573199,99.43197462,212.19,212.1,7.4]
[1758720574299,103.67217462,212.19,212.1,7.4]
[1758720575001,4.2404,212.18,212.1,7.4]
[1758720575196,99.43197462,212.19,212.1,7.4]
[1758720575395,168.81397976,212.19,212.1,7.4]
[1758720576501,11.8312,212.13,212.06,7.4]
[1758720576694,11.8312,212.13,212.06,44.94]
[1758720577696,7.59,212.13,212.06,44.94]
[1758720580001,11.8314,212.13,212.06,44.94]
[1758720580198,7.59,212.13,212.01,0.82122862]
[1758720580501,7.59,212.13,212.02,7.4]
[1758720581204,4.2417,212.11,212.02,7.4]
[1758720582402,7.59,212.18,212.04,7.4]
[1758720584204,4.241,212.15,212.05,4.2428]
[1758720584405,11.831,212.15,212.06,7.4]
[1758720585106,4.2412,212.14,212.06,7.4]
[1758720585600,7.59,212.15,212.06,7.4]
[1758720585900,4.2422,212.09,212.06,7.4]
[1758720586107,4.2422,212.09,212.01,74.00122862]
[1758720586108,7.59,212.08,212.02,7.4]
[1758720590010,7.59,212.08,212.01,0.82122862]
[1758720591211,4.2428,212.06,212.01,0.82122862]
[1758720591408,11.8328,212.06,212.01,8.22122862]
[1758720592113,11.8328,212.06,212.01,0.82122862]
[1758720592313,11.8328,212.06,212.02,7.4]
[1758720592615,7.59,212.05,212.02,7.4]
[1758720593111,4.2428,212.06,212.02,7.4]
[1758720593807,11.8128,212.06,212.02,7.4]
[1758720594711,7.57,212.06,212.02,7.4]
[1758720595013,4.2422,212.09,212.02,7.35]
[1758720595416,4.2424,212.08,212.02,7.35]
[1758720596410,4.2419,212.1,212.02,7.35]
[1758720596709,7.57,212.1,212.02,7.35]
[1758720597114,7.57,212.1,212.0,7.35]
[1758720597612,4.2427,212.06,212.0,7.35]
[1758720600312,4.2427,212.06,211.97,42.74]
[1758720600313,65.9984,212.06,211.97,42.74]
[1758720600510,7.79,212.05,211.97,42.74]
[1758720600706,7.79,212.04,211.97,42.74]
[1758720600914,7.79,212.04,211.98,7.89]
[1758720601115,65.9826,212.11,211.98,7.89]
[1758720601116,3.42460514,212.08,211.98,7.89]
[1758720601416,7.79,212.09,212.01,7.89]
[1758720602408,7.79,212.12,212.01,7.89]
[1758720602612,4.2422,212.09,212.01,7.89]
[1758720603318,11.21460514,212.1,212.01,7.89]
[1758720604216,73.778,212.09,211.98,114.56]
[1758720604427,73.778,212.09,211.99,7.89]
[1758720604613,7.79,212.09,211.99,7.89]
[1758720604919,11.21460514,212.14,212.01,7.89]
[1758720605119,7.79,212.12,212.01,7.89]
[1758720605818,4.2418,212.11,212.01,7.89]
[1758720606117,4.2418,212.11,212.02,11.8476346]
[1758720606320,4.2418,212.11,212.03,7.89]
[1758720606521,4.2418,212.11,212.03,12.1331]
[1758720606821,7.79,212.12,212.03,7.89]
[1758720607119,4.2413,212.13,212.03,7.89]
[1758720607320,100.50462404,212.14,212.03,7.89]
[1758720607321,100.50462404,212.14,212.05,3.9576346]
[1758720607518,100.50462404,212.14,212.08,7.89]
[1758720607722,100.30157654,212.14,212.11,7.89]
[1758720608124,62.33157654,212.14,212.13,7.89]
[1758720608426,4.2381,212.28,212.13,7.89]
[1758720608626,7.79,212.29,212.15,3.42460514]
[1758720608925,7.79,212.27,212.14,119.6576371]
[1758720609122,7.79,212.27,212.15,3.9576371]
[1758720609325,4.2387,212.24,212.14,119.6576371]
[1758720609527,7.79,212.27,212.14,123.8982371]
[1758720609825,4.2383,212.26,212.14,119.6576371]
[1758720610127,7.79,212.27,212.14,115.7]
[1758720610319,7.79,212.21,212.13,3.42460514]
[1758720610621,7.79,212.21,212.12,115.72]
[1758720610828,4.2391,212.22,212.12,123.10224224]
[1758720611522,4.2395,212.2,212.12,123.10224224]
[1758720612122,4.2391,212.23,212.12,123.10224224]
[1758720612329,4.2391,212.23,212.13,4.2408]
[1758720612519,7.79,212.25,212.12,123.10224224]
[1758720612725,4.2381,212.27,212.15,3.42460514]
[1758720612934,4.2381,212.27,212.15,7.38224224]
[1758720613135,4.2381,212.27,212.15,3.42460514]
[1758720613439,4.2385,212.25,212.15,3.42460514]
[1758720613736,7.79,212.26,212.15,3.42460514]
[1758720613737,73.72,212.26,212.15,18.22860315]
[1758720613937,12.0291,212.22,212.13,3.42460514]
[1758720614133,12.0291,212.22,212.14,115.88]
[1758720614341,7.79,212.22,212.14,115.88]
[1758720614534,4.2395,212.2,212.14,115.88]
[1758720615235,7.79,212.22,212.14,115.88]
[1758720615433,7.79,212.29,212.14,115.88]
[1758720615841,12.0287,212.25,212.15,4.2405]
[1758720616144,7.79,212.25,212.16,3.42460514]
[1758720616340,11.21460514,212.31,212.16,3.42460514]
[1758720616642,7.79,212.27,212.16,3.42460514]
[1758720617138,7.79,212.27,212.14,115.88]
[1758720617343,7.79,212.27,212.16,3.42460514]
[1758720618045,4.2387,212.24,212.16,3.42460514]
[1758720618748,4.2383,212.26,212.16,3.42460514]
[1758720619144,7.79,212.25,212.16,3.42460514]
[1758720619343,65.9301,212.26,212.12,14.4256813]
[1758720619544,65.9301,212.26,212.13,38.54]
[1758720619545,7.79,212.23,212.13,38.54]
[1758720619945,65.9502,212.2,212.13,38.54]
[1758720620136,65.9551,212.18,212.13,38.54]
[1758720620340,65.9551,212.18,212.08,0.88328559]
[1758720620739,7.79,212.17,212.08,0.88328559]
[1758720621642,7.79,212.14,212.01,3.94387002]
[1758720621836,7.79,212.12,212.0,39.44]
[1758720622147,4.2417,212.1,212.0,43.6833]
[1758720622347,73.7646,212.12,212.0,39.44]
[1758720622842,7.79,212.12,212.0,39.44]
[1758720623743,7.79,212.12,212.03,4.2429]
[1758720623943,7.79,212.12,212.0,42.86460514]
[1758720624137,7.79,212.12,212.02,4.2431]
[1758720624738,12.0311,212.12,212.02,4.2431]
[1758720624946,12.0311,212.12,212.0,42.86460514]
[1758720624947,7.79,212.12,212.0,42.86460514]
[1758720625953,7.25,212.09,212.0,42.86460514]
[1758720626451,3.42460514,212.11,211.98,145.5914507]
[1758720626649,7.25,212.07,211.99,116.12]
[1758720627352,7.25,212.03,211.99,116.12]
[1758720627541,7.25,212.03,211.98,145.5914507]
[1758720627846,7.25,212.03,211.96,0.88854871]
[1758720628751,7.25,212.04,211.96,0.88854871]
[1758720629345,4.2431,212.02,211.96,0.88854871]
[1758720630653,7.25,211.99,211.96,0.88854871]
[1758720630852,6.43738876,212.0,211.96,0.88854871]
[1758720631049,7.25,211.99,211.96,0.88854871]
[1758720631246,4.2439,211.98,211.96,0.88854871]
[1758720631450,7.25,211.97,211.93,459.3]
[1758720631648,9.44388876,211.97,211.93,459.3]
[1758720631853,7.25,211.96,211.93,116.14]
[1758720632449,7.25,211.95,211.93,116.14]
[1758720632846,2.19388876,211.94,211.84,6.33567208]
[1758720633148,7.25,211.95,211.85,116.26]
[1758720633345,2.19388876,211.97,211.86,6.44018876]
[1758720633848,7.25,211.96,211.86,6.44018876]
[1758720634251,7.25,211.96,211.85,116.26]
[1758720634252,9.44388876,211.96,211.87,4.2459]
[1758720636148,13.68818876,211.96,211.86,2.19388876]
[1758720636356,9.44388876,211.96,211.86,2.19388876]
[1758720636658,9.44388876,211.96,211.88,4.2459]
[1758720636954,2.19388876,211.96,211.85,116.26]
[1758720637255,7.25,211.95,211.85,116.26]
[1758720637761,2.19388876,211.93,211.85,116.26]
[1758720637958,7.25,211.92,211.85,116.26]
[1758720638462,7.25,211.92,211.86,116.32]
[1758720639966,11.4951,211.92,211.86,116.32]
[1758720640566,11.4951,211.92,211.85,116.28]
[1758720641169,7.25,211.92,211.85,116.28]
[1758720643565,7.25,211.92,211.85,118.47388876]
[1758720643769,11.4951,211.92,211.85,116.28]
[1758720644163,7.25,211.89,211.81,343.3]
[1758720644365,7.25,211.89,211.82,116.26]
[1758720645172,11.4959,211.89,211.82,116.26]
[1758720645568,7.25,211.89,211.82,116.26]
[1758720645872,2.19388876,211.86,211.79,116.26]
[1758720646573,4.2467,211.84,211.79,116.28]
[1758720646874,11.4967,211.84,211.79,116.28]
[1758720647276,2.19388876,211.83,211.77,146.9119892]
[1758720647468,2.19388876,211.83,211.76,116.26]
[1758720648169,4.2477,211.8,211.76,116.26]
[1758720648370,13.69158876,211.8,211.76,116.26]
[1758720650163,2.19388876,211.8,211.76,116.26]
[1758720650470,7.25,211.79,211.76,116.26]
[1758720650972,2.19388876,211.8,211.76,116.26]
[1758720651267,7.25,211.79,211.68,6.44368876]
[1758720651668,7.25,211.79,211.69,116.28]
[1758720651866,11.4978,211.79,211.69,120.5296]
[1758720652063,4.2478,211.79,211.69,116.28]
[1758720652262,2.19388876,211.79,211.69,118.47388876]
[1758720652772,66.0336,211.93,211.73,2.19388876]
[1758720652773,2.19388876,211.84,211.73,2.19388876]
[1758720652962,2.19388876,211.85,211.75,2.19388876]
[1758720653167,2.19388876,211.85,211.76,116.38]
[1758720653368,7.25,211.84,211.76,116.38]
[1758720653574,4.2469,211.83,211.76,116.38]
[1758720654074,2.19388876,211.87,211.78,2.19388876]
[1758720654276,2.19388876,211.88,211.8,4.2473]
[1758720654579,2.19388876,211.85,211.76,116.38]
[1758720654783,4.2469,211.84,211.76,116.38]
[1758720655074,2.19388876,211.85,211.76,116.38]
[1758720655271,4.2464,211.86,211.76,120.6281]
[1758720655473,6.44028876,211.86,211.76,116.38]
[1758720655673,2.19388876,211.88,211.77,2.19388876]
[1758720656066,7.87,211.91,211.77,2.19388876]
[1758720656271,66.0182,211.98,211.82,2.19388876]
[1758720656469,66.0061,212.02,211.82,2.19388876]
[1758720656470,2.19388876,211.95,211.86,2.19388876]
[1758720657180,2.19388876,211.95,211.87,4.2461]
[1758720658070,2.19388876,211.98,211.88,2.19388876]
[1758720658275,6.43758876,212.0,211.9,2.19388876]
[1758720658776,4.2431,212.02,211.92,2.19388876]
[1758720658973,6.43698876,212.02,211.92,2.19388876]
[1758720659179,6.43698876,212.02,211.93,4.2448]
[1758720659374,6.43698876,212.02,211.92,2.19388876]
[1758720659375,7.87,212.08,211.96,2.19388876]
[1758720659678,2.19388876,212.06,211.97,4.2441]
[1758720660379,2.19388876,212.09,211.99,6.43758876]
[1758720660580,2.19388876,212.11,212.01,2.19388876]
[1758720660780,4.2413,212.12,212.03,2.19388876]
[1758720660977,9.51388876,212.13,212.03,23.51388876]
[1758720661178,2.19388876,212.15,212.05,2.19388876]
[1758720661374,107.06289397,212.17,212.09,2.19388876]
[1758720661576,107.06289397,212.17,212.11,2.19388876]
[1758720661878,7.32,212.28,212.15,2.19388876]
[1758720662075,7.32,212.28,212.24,2.19388876]
[1758720662381,73.2348,212.31,212.24,2.19388876]
[1758720662578,73.2348,212.31,212.2,21.76]
[1758720662974,65.927,212.27,212.18,5.38610277]
[1758720663279,65.927,212.27,212.13,0.93642869]
[1758720663280,65.9426,212.22,212.13,0.93642869]
[1758720663477,7.32,212.24,212.13,13.03642869]
[1758720663680,7.32,212.24,212.13,18.42253146]
[1758720664075,7.32,212.3,212.13,18.42253146]
[1758720664280,106.40268759,212.36,212.17,5.38610277]
[1758720664478,106.40268759,212.36,212.16,65.9606]
[1758720664479,106.40268759,212.36,212.25,5.38610277]
[1758720664677,106.40268759,212.36,212.26,117.0]
[1758720664979,7.32,212.35,212.26,117.02]
[1758720665177,7.32,212.35,212.21,5.38610277]
[1758720665382,7.32,212.35,212.22,117.04]
[1758720665686,7.32,212.35,212.23,117.08]
[1758720666589,7.32,212.35,212.21,5.38610277]
[1758720667179,7.32,212.35,212.22,36.74]
[1758720667385,106.40268759,212.36,212.25,5.38610277]
[1758720667785,106.40268759,212.36,212.26,117.16]
[1758720668280,7.32,212.4,212.26,117.16]
[1758720668486,11.5546,212.45,212.29,5.38610277]
[1758720668681,77.4261,212.45,212.29,5.38610277]
[1758720669485,7.32,212.42,212.3,26.3]
[1758720669684,7.32,212.42,212.29,26.3]
[1758720669879,70.1199,212.41,212.27,5.38610277]
[1758720670075,7.32,212.38,212.27,9.88]
[1758720670282,7.32,212.38,212.27,15.26610277]
[1758720670985,7.32,212.38,212.25,5.38610277]
[1758720671288,73.2135,212.38,212.25,31.20610277]
[1758720671484,7.32,212.38,212.25,31.20610277]
[1758720671984,66.69442661,212.44,212.25,101.37740277]
[1758720671985,7.32,212.43,212.25,101.37740277]
[1758720672175,7.32,212.43,212.29,5.38610277]
[1758720672574,7.32,212.43,212.26,65.9293]
[1758720672575,7.32,212.43,212.28,5.38610277]
[1758720673285,65.8935,212.38,212.17,65.9573]
[1758720673491,7.32,212.37,212.21,5.38610277]
[1758720674988,7.32,212.42,212.25,5.38610277]
[1758720675188,7.32,212.42,212.26,68.66]
[1758720675592,7.32,212.39,212.27,82.22]
[1758720676488,7.32,212.44,212.29,5.38610277]
[1758720676692,11.5548,212.44,212.29,9.62370277]
[1758720677290,4.2352,212.42,212.29,5.38610277]
[1758720677693,65.8786,212.43,212.29,5.38610277]
[1758720678093,73.2079,212.4,212.25,5.38610277]
[1758720678394,73.2079,212.4,212.26,63.72]
[1758720678395,7.32,212.4,212.26,63.72]
[1758720679399,7.32,212.4,212.29,5.38610277]
[1758720680494,7.32,212.4,212.26,63.72]
[1758720680495,7.32,212.4,212.27,5.38610277]
[1758720681693,11.5556,212.4,212.27,9.62420277]
[1758720681996,7.32,212.4,212.25,5.38610277]
[1758720682295,11.5564,212.36,212.26,31.98]
[1758720682897,7.32,212.36,212.26,31.98]
[1758720683291,7.32,212.36,212.26,36.2183]
[1758720683488,7.32,212.42,212.26,31.98]
[1758720683890,65.878,212.43,212.24,5.38610277]
[1758720683891,7.9,212.4,212.24,5.38610277]
[1758720684198,7.9,212.4,212.25,45.38]
[1758720684699,12.1357,212.4,212.29,4.2377]
[1758720684892,7.9,212.4,212.28,5.38610277]
[1758720685296,7.9,212.4,212.26,5.38610277]
[1758720685797,7.9,212.4,212.27,65.927]
[1758720686396,65.884,212.41,212.24,5.38610277]
[1758720686593,65.884,212.41,212.25,35.38]
[1758720686898,4.2357,212.39,212.25,35.38]
[1758720687101,7.9,212.4,212.25,35.38]
[1758720687300,65.8781,212.43,212.25,35.38]
[1758720687301,7.9,212.41,212.25,35.38]
[1758720687602,4.2361,212.38,212.29,4.2377]
[1758720687794,4.2361,212.38,212.25,35.38]
[1758720687990,7.9,212.39,212.24,5.38610277]
[1758720688194,4.2363,212.36,212.26,4.2383]
[1758720688400,7.9,212.39,212.25,117.48]
[1758720688594,7.9,212.39,212.3,4.2375]
[1758720688991,7.9,212.39,212.25,183.4111]
[1758720689196,7.9,212.39,212.26,65.9297]
[1758720689396,6.20578455,212.48,212.28,5.38610277]
[1758720689700,4.235,212.43,212.29,65.9208]
[1758720689902,4.235,212.43,212.28,5.38610277]
[1758720689903,12.135,212.43,212.28,5.38610277]
[1758720690298,12.135,212.43,212.27,408.8271]
[1758720690299,65.8812,212.42,212.27,342.9]
[1758720690508,65.8812,212.42,212.28,118.43100571]
[1758720690509,7.9,212.41,212.28,118.43100571]
[1758720690901,7.9,212.41,212.28,0.97100571]
[1758720691197,4.2361,212.38,212.29,117.52]
[1758720691398,7.9,212.41,212.29,117.52]
[1758720692309,7.9,212.47,212.31,65.9146]
[1758720692602,12.1343,212.47,212.32,65.9116]
[1758720692798,12.1343,212.47,212.33,65.9087]
[1758720693001,12.1343,212.47,212.31,65.9139]
[1758720693304,7.9,212.51,212.36,65.8991]
[1758720693507,65.826,212.6,212.38,74.54164922]
[1758720693805,7.9,212.59,212.44,65.8745]
[1758720693991,7.9,212.59,212.45,117.64]
[1758720694205,7.9,212.59,212.43,74.52504922]
[1758720694398,7.9,212.59,212.42,342.88]
[1758720694605,7.9,212.58,212.43,117.72]
[1758720694810,7.9,212.58,212.42,342.88]
[1758720695102,4.2325,212.56,212.44,4.2347]
[1758720695403,7.9,212.58,212.43,131.95405507]
[1758720695610,7.9,212.58,212.43,140.60330429]
[1758720695803,7.9,212.58,212.47,4.2341]
[1758720696007,7.9,212.58,212.43,131.95405507]
[1758720696403,4.2322,212.57,212.43,136.18885507]
[1758720696698,4.2322,212.57,212.43,131.95405507]
[1758720696905,4.2326,212.55,212.43,14.21405507]
[1758720697101,7.9,212.55,212.44,117.72]
[1758720698508,7.9,212.55,212.42,342.88]
[1758720699014,12.1334,212.51,212.43,117.7]
[1758720699303,12.1334,212.51,212.42,342.88]
[1758720699508,65.8568,212.5,212.42,342.88]
[1758720699709,7.9,212.49,212.42,460.58]
[1758720700301,73.7692,212.46,212.3,342.74]
[1758720700508,7.9,212.44,212.31,117.7]
[1758720700704,65.8793,212.43,212.31,117.7]
[1758720700906,12.1355,212.41,212.31,117.7]
[1758720701403,7.9,212.41,212.31,117.7]
[1758720701606,4.2349,212.44,212.31,117.7]
[1758720701806,7.9,212.45,212.31,183.6143]
[1758720701999,7.9,212.45,212.31,117.7]
[1758720702807,12.1347,212.45,212.33,4.2369]
[1758720703206,4.2353,212.42,212.31,117.7]
[1758720703710,4.2358,212.39,212.3,342.74]
[1758720704009,7.9,212.41,212.32,117.74]
[1758720704410,7.9,212.46,212.32,117.74]
[1758720705813,12.1344,212.46,212.32,121.9769]
[1758720706116,12.1344,212.46,212.32,117.74]
[1758720706319,7.9,212.46,212.3,351.38924922]
[1758720706617,7.9,212.52,212.35,65.9024]
[1758720706809,7.9,212.52,212.36,117.72]
[1758720707010,4.2342,212.47,212.36,121.9563]
[1758720707511,7.9,212.53,212.39,4.2356]
[1758720707711,7.9,212.53,212.36,117.72]
[1758720707912,7.9,212.5,212.36,117.72]
[1758720708108,4.2343,212.47,212.36,117.72]
[1758720708318,7.9,212.5,212.36,117.72]
[1758720708615,7.9,212.5,212.34,3.90734318]
[1758720708803,4.2344,212.46,212.36,4.2362]
[1758720709011,4.2344,212.46,212.35,58.92]
[1758720709319,73.7687,212.46,212.36,117.72]
[1758720709507,73.7719,212.45,212.37,117.72]
[1758720709808,7.9,212.41,212.37,117.72]
[1758720710009,65.8881,212.4,212.3,342.74]
[1758720710205,73.7902,212.39,212.31,117.78]
[1758720710611,4.2367,212.35,212.31,117.78]
[1758720710911,7.9,212.34,212.31,117.82]
[1758720711712,74.51594922,212.47,212.31,117.82]
[1758720711713,12.1358,212.39,212.31,117.82]
[1758720711910,7.9,212.39,212.31,117.82]
[1758720712411,65.8936,212.38,212.31,117.82]
[1758720712910,7.9,212.39,212.31,117.82]
[1758720713307,4.2371,212.33,212.3,342.74]
[1758720713507,65.9028,212.35,212.28,0.97100571]
[1758720714114,7.9,212.36,212.28,0.97100571]
[1758720714314,65.9027,212.35,212.28,0.97100571]
[1758720714618,65.9027,212.35,212.27,117.84]
[1758720714815,7.81,212.32,212.2,14.12205861]
[1758720715019,65.9153,212.31,212.21,117.84]
[1758720715215,12.0484,212.26,212.21,117.84]
[1758720715420,7.81,212.25,212.21,117.84]
[1758720715717,7.81,212.25,212.18,342.78]
[1758720715912,7.81,212.25,212.19,117.88]
[1758720716816,12.0486,212.25,212.19,117.88]
[1758720718122,73.7473,212.24,212.18,342.78]
[1758720718419,65.9406,212.23,212.13,0.93642869]
[1758720718619,4.2398,212.19,212.14,59.96]
[1758720718821,4.2398,212.19,212.05,3.90734318]
[1758720718822,73.764,212.19,212.02,12.5565924]
[1758720719022,4.2401,212.18,212.04,4.2427]
[1758720719920,4.2401,212.18,212.04,18.60876791]
[1758720720115,4.2401,212.18,212.04,4.2427]
[1758720720317,4.2404,212.16,212.04,4.2427]
[1758720720720,7.94,212.15,212.01,4.2433]
[1758720720913,7.94,212.15,212.02,117.88]
[1758720721315,4.241,212.13,212.02,117.88]
[1758720721521,7.94,212.13,212.0,342.88]
[1758720721723,7.94,212.13,211.97,8.64924922]
[1758720721724,65.9748,212.12,211.97,8.64924922]
[1758720722022,7.94,212.04,211.95,156.43820297]
[1758720722226,8.64924922,212.15,211.95,156.43820297]
[1758720722417,4.241,212.13,211.95,160.68260297]
[1758720722816,4.241,212.13,211.95,122.1644]
[1758720723014,4.2416,212.1,211.95,117.92]
[1758720723218,7.94,212.09,211.95,117.92]
[1758720723623,7.94,212.09,211.93,14.25749482]
[1758720723820,7.94,212.09,211.94,79.06]
[1758720724122,7.94,212.09,211.95,116.52]
[1758720724324,4.242,212.08,211.95,116.52]
[1758720724827,7.94,212.14,211.96,66.0236]
[1758720725123,7.94,212.14,211.99,66.0149]
[1758720725327,7.94,212.23,212.07,65.9884]
[1758720725527,7.94,212.23,212.02,67.00710864]
[1758720725528,7.94,212.23,212.08,83.94]
[1758720725836,7.94,212.23,212.09,111.06]
[1758720726131,4.2393,212.22,212.09,111.06]
[1758720726923,4.2396,212.2,212.02,67.00710864]
[1758720727123,7.94,212.19,212.02,67.00710864]
[1758720727324,7.94,212.19,212.03,113.58]